{"text_format":"1","workbook":"xlsx","n_sheets":2,"sheets":["Testo_esercizio","Dati"],"not_rendered":{"charts":0,"images":6,"macros":1,"external_links":0,"defined_names":0,"comments":1,"pivot_tables":0},"unopened":[],"bounds":{"document_bytes":16777216,"sheet_cells":100000,"rows_first":2000,"rows_last":500,"rows_between":2000,"halvings":0,"cell_chars":16384,"cell_head_chars":4096},"cells_cut":0,"cells_raw":0,"read":"whole","date_system":"1900"}

{"sheet":"Testo_esercizio","index":0,"n_rows":3,"n_cols":6,"rows_kept":3,"cut":false,"hidden":false,"merged":[]}
[]
[null,null,null,null,null,"X = numero di dipendenti"]
[null,null,null,null,null,"Y=vendite in milioni di Euro"]

{"sheet":"Dati","index":1,"n_rows":83,"n_cols":15,"rows_kept":83,"cut":false,"hidden":false,"merged":[[22,2,22,3],[88,11,90,14],[76,11,77,12],[46,12,48,12],[66,11,66,13],[67,11,71,11],[82,12,85,12],[82,13,85,13],[46,13,48,13],[43,12,44,12],[43,13,44,13],[23,3,23,6],[35,8,37,8],[35,9,37,9],[32,2,34,5]]}
[null,null,"X = numero di dipendenti",null,null,"Y=vendite in milioni di Euro"]
[]
[null,null,"xi","yi","xi^2","yi^2","xi*yi","Valori teorici","Residui ei","Residui al quadrato","(Valori teorici -media)^2","(Valori effettivi-media)^2","xiei","(xi-M(x))yi","(xi-M(x))^2"]
[null,"A",10,1.9,{"$f":"C4^2","v":100},{"$f":"D4^2","v":3.61},{"$f":"C4*D4","v":19}]
[null,"B",18,3.1,{"$f":"C5^2","v":324},{"$f":"D5^2","v":9.6100000000000012},{"$f":"C5*D5","v":55.800000000000004}]
[null,"C",20,3.2,400,10.240000000000002,64]
[null,"D",8,1.5,64,2.25,12]
[null,"E",30,6.2,900,38.440000000000005,186]
[null,"F",12,2.8,144,7.839999999999999,33.599999999999994]
[null,"G",14,2.2999999999999998,196,5.2899999999999991,32.199999999999996]
[null,"Tot.",{"$f":"SUM(C4:C10)","v":112},{"$f":"SUM(D4:D10)","v":21},{"$f":"SUM(E4:E10)","v":2128},{"$f":"SUM(F4:F10)","v":77.28},{"$f":"SUM(G4:G10)","v":402.59999999999997}]
[]
[null,null,null,null,null,"n="]
[]
[]
[null,null,"a=",null,null,null,null,"b="]
[]
[]
[]
[null,null,null,null,"s=",null,null,null,"s(b)=",null,null,null,"s(a)="]
[]
[]
[null,null,"Calcolo diretto di s tramite la funzione ERR.STD.YX",null,"s="]
[null,null,null,"Modello di regressione tramite la funzione REGR.LIN",null,null,null,null,"t(b)=",null,null,null,"t(a)="]
[]
[]
[null,null,null,null,null,null,null,null,"p value =",null,null,null,"p value ="]
[]
[]
[]
[]
[null,null,null,null,null,null,null,null,"t0.025(5)"]
[null,null,"Modello di regressione tramite il componente aggiuntivo di Excel Analisi dei dati",null,null,null,null,null,"t0.975(5)",null,null,null,"Estremo inf. intervallo confidenza di α","Estremo sup. intervallo confidenza di α"]
[null,null,null,null,null,null,null,null,null,null,null,"α"]
[]
[null,null,null,null,null,null,null,null,"Estremo inf. intervallo confidenza","Estremo sup. intervallo confidenza"]
[null,null,null,null,null,null,null,"β"]
[]
[]
[]
[]
[]
[]
[null,null,null,null,null,null,null,null,null,null,null,null,"Quantile 0.975 di una v.a. Chi quadrato con n-2 gradi di libertà","Quantile 0.025 di una v.a. Chi quadrato con n-2 gradi di libertà"]
[]
[]
[null,null,null,null,null,null,null,null,null,null,null,null,"Estremo inf. intervallo confidenza di σ^2","Estremo sup. intervallo confidenza di σ^2"]
[null,null,null,null,null,null,null,null,null,null,null,"σ^2"]
[]
[]
[]
[]
[]
[]
[]
[]
[]
[]
[]
[]
[]
[]
[]
[]
[]
[]
[null,null,null,null,null,null,null,null,null,null,null,"3 diversi modi per calcolare un valore previsto dato x0"]
[null,null,null,null,null,null,null,null,null,null,null,"y_0 previsto (ossia vendite previste in corrispondenza di un numero di dipendenti pari a 16)",null,"Utilizzando i parametri stimati"]
[]
[null,null,"VERIFICA DELL'IPOTESI NULLA H0:β=0.25",null,null,null,null,null,null,null,null,null,null,"Utilizzando la funzione \"Tendenza\""]
[]
[null,null,"Test t=",null,null,null,null,null,null,null,null,null,null,"Utilizzando la funzione \"Previsione\""]
[]
[null,null,"pvalue del risultato del test"]
[null,null,null,null,null,null,null,null,null,null,null,null,null,"Varianza dell'errore di previsione"]
[]
[null,null,null,null,null,null,null,null,null,null,null,"radice quadrata della varianza dell'errore di previsione sqrt((var(e_0))"]
[]
[]
[]
[]
[]
[null,null,null,null,null,null,null,null,null,null,null,null,"Estremo inf. intervallo confidenza","Estremo sup. intervallo confidenza"]